[Event "2nd Bieszczady Chess-ch A 2022"]
[Site "Bystre"]
[Date "2022.07.21"]
[Round "5.5"]
[White "Hnatyshyn, Anastasiia"]
[Black "Dzwierzynski, Bartosz"]
[Result "0-1"]
[ECO "B76"]
[WhiteElo "1931"]
[BlackElo "2129"]
[Annotator "NA RC"]
[PlyCount "148"]
[EventDate "2022.07.17"]
[EventCountry "POL"]
[SourceTitle "playchess.com"]
[Source "ChessBase"]
[SourceQuality "1"]
[TimeControl "5400+30"]

1. e4 {[%emt 0:00:03]} c5 {[%emt 0:00:03]} 2. Nf3 {[%emt 0:00:06]} d6 {[%emt 0:00:04]} 3. d4 {[%emt 0:00:11]} cxd4 {[%emt 0:00:03]} 4. Nxd4 {[%emt 0:00:10]} Nf6 {[%emt 0:00:04]} 5. Nc3 {[%emt 0:00:06]} g6 {[%emt 0:00:02]} 6. Be3 {[%emt 0:00:07]} Bg7 {[%emt 0:00:03]} 7. f3 {[%emt 0:00:09]} Nc6 {[%emt 0:00:05]} 8. Qd2 {[%emt 0:00:05]} O-O {[%emt 0:00:24]} 9. O-O-O {[%emt 0:00:05]} d5 {[%emt 0:00:02]} 10. exd5 {[%emt 0:00:05]} Nxd5 {[%emt 0:00:03]} 11. Nxc6 {[%emt 0:00:09]} bxc6 {[%emt 0:00:03]} 12. Bd4 {[%emt 0:00:06]} Nxc3 {[%emt 0:00:04]} 13. Qxc3 {[%emt 0:00:07]} Bh6+ {[%emt 0:00:02]} 14. Be3 {[%emt 0:00:09]} Bxe3+ {[%emt 0:00:05]} 15. Qxe3 {[%emt 0:00:04]} Qb6 {[%emt 0:00:05]} 16. Qxe7 {[%emt 0:00:32]} Be6 {[%emt 0:00:06]} 17. Qa3 {[%emt 0:00:05]} Rad8 {[%emt 0:00:56]} 18. Bd3 {[%emt 0:00:24]} Rd5 {[%emt 0:00:15]} 19. b3 {[%emt 0:09:57]} Rfd8 {[%emt 0:08:34]} 20. Qe7 {[%emt 0:18:50]} Qd4 {[%emt 0:17:54]} 21. Kb1 {[%emt 0:00:52]} Qc3 {[%emt 0:03:00]} 22. Rc1 {[%emt 0:13:00]} a5 {[%emt 0:10:16]} 23. Qa3 {[%emt 0:06:29]} a4 {[%emt 0:13:04]} 24. Qb2 {[%emt 0:07:47]} Qa5 {[%emt 0:00:22]} 25. b4 {[%emt 0:19:24]} Qb6 {[%emt 0:02:03]} 26. a3 {[%emt 0:00:16]} c5 {[%emt 0:07:38]} 27. Ka1 {[%emt 0:01:32]} Rd4 {[%emt 0:03:34]} 28. b5 {[%emt 0:04:07]} c4 {[%emt 0:15:08]} 29. Be4 {[%emt 0:00:30]} c3 {[%emt 0:03:09]} 30. Qxc3 {[%emt 0:00:16]} Qxb5 {[%emt 0:00:30]} 31. Rb1 {[%emt 0:04:45]} Qe2 {[%emt 0:00:47]} 32. g4 {[%emt 0:02:10]} Rc4 {[%emt 0:02:18]} 33. Qf6 {[%emt 0:04:03]} Qd2 {[%emt 0:02:11]} 34. Rhd1 {[%emt 0:02:29]} Qxd1 {[%emt 0:00:11]} 35. Rxd1 {[%emt 0:00:01]} Rxd1+ {[%emt 0:00:07]} 36. Kb2 {[%emt 0:00:03]} Rd6 {[%emt 0:05:36]} 37. Qe7 {[%emt 0:01:43]} Rb6+ {[%emt 0:01:55]} 38. Kc1 {[%emt 0:00:14]} Rc8 {[%emt 0:00:04]} 39. h4 {[%emt 0:00:49]} h6 {[%emt 0:05:36]} 40. h5 {[%emt 0:00:00]} gxh5 {[%emt 0:00:00]} 41. g5 {[%emt 0:00:00]} hxg5 {[%emt 0:00:00]} 42. Qxg5+ {[%emt 0:00:00]} Kf8 {[%emt 0:00:00]} 43. f4 {[%emt 0:00:00]} Bg4 {[%emt 0:00:00]} 44. f5 {[%emt 0:01:57]} Rd6 {[%emt 0:00:00]} 45. Qf4 {[%emt 0:01:41]} Ke7 {[%emt 0:02:33]} 46. Qe5+ {[%emt 0:00:32]} Kd7 {[%emt 0:00:04]} 47. Qb5+ {[%emt 0:00:57]} Kd8 {[%emt 0:00:12]} 48. Qa5+ {[%emt 0:02:49]} Ke7 {[%emt 0:01:29]} 49. Qxa4 {[%emt 0:00:35]} Kf6 $14 {[%emt 0:01:00]} 50. Qb5 {[%emt 0:02:24]} h4 {[%emt 0:01:57]} 51. Qb2+ {[%emt 0:00:14]} Kg5 {[%emt 0:00:28]} 52. Qb7 {[%emt 0:02:17]} Rd1+ {[%emt 0:01:22]} 53. Kb2 {[%emt 0:00:01]} Rcd8 {[%emt 0:00:45]} 54. Qe7+ {[%emt 0:01:20]} f6 {[%emt 0:00:25]} 55. Bd3 {[%emt 0:00:08]} R8xd3 {[%emt 0:00:42]} 56. cxd3 {[%emt 0:00:13]} h3 {[%emt 0:00:16]} 57. Qe3+ {[%emt 0:01:15]} Kxf5 {[%emt 0:00:21]} 58. a4 Rf1 {[%emt 0:00:46]} 59. Qg3 {[%emt 0:01:02]} Rf3 {[%emt 0:00:19]} 60. Qh2 {[%emt 0:00:27]} Rxd3 {[%emt 0:00:41]} 61. Qc2 {[%emt 0:00:14]} Ke4 {[%emt 0:00:17]} 62. Qc6+ {[%emt 0:00:34]} Ke3 {[%emt 0:00:24]} 63. Qxf6 {[%emt 0:00:18]} Rd2+ {[%emt 0:00:30]} 64. Kc1 {[%emt 0:00:55]} Rf2 {[%emt 0:00:29]} 65. Qc3+ {[%emt 0:00:27]} Kf4 {[%emt 0:00:18]} 66. Qc7+ {[%emt 0:00:38]} Kf3 {[%emt 0:00:20]} 67. Qb7+ Kg3 {[%emt 0:00:23]} 68. Qc7+ {[%emt 0:00:48]} Kg2 {[%emt 0:00:52]} 69. Qc6+ {[%emt 0:00:32]} Bf3 {[%emt 0:00:27]} 70. Qg6+ {[%emt 0:00:19]} Kf1 {[%emt 0:00:25]} 71. Qd3+ {[%emt 0:00:17]} Kg1 {[%emt 0:00:11]} 72. Qg6+ {[%emt 0:00:29]} Bg2 {[%emt 0:00:30]} 73. a5 {[%emt 0:00:49]} h2 {[%emt 0:00:07]} 74. a6 {[%emt 0:00:18]} h1=Q {[%emt 0:00:05]} 0-1

[Event "2nd Bieszczady Chess-ch A 2022"]
[Site "Bystre"]
[Date "2022.07.21"]
[Round "5.6"]
[White "Palacki, Rafal"]
[Black "Maksimenko, Andrei Jr"]
[Result "0-1"]
[ECO "B41"]
[WhiteElo "1832"]
[BlackElo "1897"]
[Annotator "NA RC COMBH"]
[PlyCount "156"]
[EventDate "2022.07.17"]
[EventCountry "POL"]
[SourceTitle "playchess.com"]
[Source "ChessBase"]
[SourceQuality "1"]
[TimeControl "5400+30"]

1. e4 {[%emt 0:08:10]} c5 {[%emt 0:00:06]} 2. Nf3 {[%emt 0:00:04]} e6 {[%emt 0:00:06]} 3. d4 {[%emt 0:00:06]} cxd4 {[%emt 0:00:04]} 4. Nxd4 {[%emt 0:00:05]} a6 {[%emt 0:00:06]} 5. Nd2 {[%emt 0:00:04]} Qc7 {[%emt 0:03:40]} 6. Bd3 {[%emt 0:00:10]} Nf6 {[%emt 0:04:48]} 7. O-O {[%emt 0:00:59]} d5 {[%emt 0:07:14]} 8. Re1 {[%emt 0:06:17]} Bd6 {[%emt 0:04:48]} 9. exd5 {[%emt 0:03:28]} Nxd5 {[%emt 0:10:20]} 10. g3 {[%emt 0:04:22]} O-O {[%emt 0:09:20]} 11. Ne4 {[%emt 0:07:43]} Be7 {[%emt 0:06:28]} 12. Qh5 {[%emt 0:05:11]} f5 {[%emt 0:17:14]} 13. Ng5 {[%emt 0:01:27]} Bxg5 {[%emt 0:03:09]} 14. Bxg5 {[%emt 0:00:17]} e5 {[%emt 0:06:54]} 15. Nb3 {[%emt 0:40:38]} Be6 {[%emt 0:09:27]} 16. c3 {[%emt 0:01:12]} Nd7 {[%emt 0:00:49]} 17. Rad1 {[%emt 0:02:31]} N5f6 {[%emt 0:02:59]} 18. Qe2 {[%emt 0:00:22]} Rae8 {[%emt 0:02:12]} 19. Qc2 {[%emt 0:02:34]} Nd5 {[%emt 0:02:32]} 20. Be2 {[%emt 0:01:59]} h6 {[%emt 0:02:10]} 21. Bc1 {[%emt 0:00:28]} f4 {[%emt 0:02:14]} 22. Bh5 {[%emt 0:04:53]} Rc8 {[%emt 0:01:00]} 23. Nd4 {[%emt 0:01:43]} Bh3 {[%emt 0:01:03]} 24. Qb3 {[%emt 0:02:03]} N7f6 {[%emt 0:01:32]} 25. Bf3 {[%emt 0:00:32]} Rcd8 {[%emt 0:00:42]} 26. Ne2 {[%emt 0:00:47]} Be6 {[%emt 0:00:50]} 27. c4 {[%emt 0:00:36]} Nb6 {[%emt 0:00:39]} 28. Rxd8 {[%emt 0:01:17]} Rxd8 {[%emt 0:00:12]} 29. gxf4 {[%emt 0:00:35]} e4 {[%emt 0:00:56]} 30. Be3 {[%emt 0:02:06]} Nxc4 {[%emt 0:00:35]} 31. Bg2 {[%emt 0:00:16]} Qf7 {[%emt 0:00:09]} 32. Nd4 {[%emt 0:01:09]} Bd5 {[%emt 0:00:33]} 33. Qc3 {[%emt 0:00:44]} Ng4 {[%emt 0:00:57]} 34. h3 {[%emt 0:00:33]} Ngxe3 {[%emt 0:00:44]} 35. fxe3 {[%emt 0:00:05]} Nd6 {[%emt 0:00:15]} 36. b3 {[%emt 0:01:37]} Nf5 {[%emt 0:00:02]} 37. Nxf5 {[%emt 0:00:26]} Qxf5 {[%emt 0:00:01]} 38. Rd1 {[%emt 0:00:25]} Rf8 {[%emt 0:02:02]} 39. Rd2 {[%emt 0:01:09]} Bc6 {[%emt 0:00:24]} 40. Bf1 {[%emt 0:00:00]} Rf6 {[%emt 0:00:00]} 41. Kh2 {[%emt 0:00:00]} Bb5 {[%emt 0:00:00]} 42. Bc4+ {[%emt 0:00:00]} Kh7 {[%emt 0:00:00] [#]} 43. Rd5 $1 {[%emt 0:00:00]} Qc8 {[%emt 0:00:00]} 44. Qd4 {[%emt 0:00:00]} Be8 {[%emt 0:01:02]} 45. Qxe4+ {[%emt 0:00:00]} Bg6 {[%emt 0:00:04]} 46. Qd4 {[%emt 0:00:00]} Bf5 {[%emt 0:02:08]} 47. Rc5 $2 {[%emt 0:00:00]} (47. e4 Bxh3 48. f5 Bxf5 49. exf5) 47... Qf8 {[%emt 0:00:46]} 48. Rc7 {[%emt 0:01:28]} b5 {[%emt 0:00:32]} 49. Bd3 {[%emt 0:00:49]} Bg6 {[%emt 0:00:35]} 50. Bxg6+ {[%emt 0:00:40]} Rxg6 {[%emt 0:00:32]} 51. Qd3 {[%emt 0:01:34]} Qf6 $16 {[%emt 0:00:11] [#]} (51... Qa8 $1 $11 52. Qe2 Qe4) 52. Rc2 $1 {[%emt 0:00:15]} Kg8 {[%emt 0:00:37]} 53. a4 {[%emt 0:01:10]} bxa4 {[%emt 0:00:32]} 54. bxa4 {[%emt 0:00:02]} Qb6 {[%emt 0:00:42]} 55. Qd5+ {[%emt 0:00:57]} Kh7 {[%emt 0:00:14]} 56. Qe4 {[%emt 0:00:26]} Qb1 {[%emt 0:00:23]} 57. Qxg6+ {[%emt 0:01:43]} Kxg6 {[%emt 0:00:04]} 58. Rc6+ {[%emt 0:00:02]} Kf5 {[%emt 0:00:16]} 59. Rxa6 {[%emt 0:00:03]} Ke4 {[%emt 0:00:54]} 60. Rg6 {[%emt 0:00:49]} Kxe3 {[%emt 0:00:16]} 61. Rxg7 {[%emt 0:00:18]} Kxf4 {[%emt 0:00:42]} 62. Rg4+ {[%emt 0:00:18]} Kf5 {[%emt 0:00:19]} 63. Kg3 {[%emt 0:00:19]} Qe1+ {[%emt 0:00:30]} 64. Kf3 {[%emt 0:00:15]} Qc3+ {[%emt 0:00:42]} 65. Kg2 {[%emt 0:00:05]} h5 {[%emt 0:00:12]} 66. Rg8 {[%emt 0:00:59]} Qd2+ {[%emt 0:00:45]} 67. Kg1 {[%emt 0:01:17]} Qd4+ {[%emt 0:00:24]} 68. Kh2 {[%emt 0:00:09]} Qf4+ {[%emt 0:00:23]} 69. Kg1 {[%emt 0:00:15]} Qxa4 {[%emt 0:00:19]} 70. Rf8+ {[%emt 0:00:17]} Ke4 {[%emt 0:00:56]} 71. Kg2 {[%emt 0:00:19]} h4 {[%emt 0:01:01]} 72. Rf1 {[%emt 0:00:33]} Qc2+ {[%emt 0:00:21]} 73. Rf2 {[%emt 0:01:17]} Qd3 {[%emt 0:00:26]} 74. Kh2 {[%emt 0:00:08]} Qg3+ {[%emt 0:00:07]} 75. Kh1 {[%emt 0:00:03]} Qxh3+ {[%emt 0:00:07]} 76. Kg1 {[%emt 0:00:06]} Qe3 {[%emt 0:00:38]} 77. Kh1 {[%emt 0:00:42]} Qe1+ {[%emt 0:01:02]} 78. Kg2 {[%emt 0:00:07]} h3+ {[%emt 0:00:16]} 0-1

[Event "2nd Bieszczady Chess-ch A 2022"]
[Site "Bystre"]
[Date "2022.07.21"]
[Round "5.7"]
[White "Sygulski, Piotr"]
[Black "Bugajski, Robert"]
[Result "1-0"]
[ECO "D44"]
[WhiteElo "2013"]
[BlackElo "2075"]
[Annotator "NA RC"]
[PlyCount "91"]
[EventDate "2022.07.17"]
[EventCountry "POL"]
[SourceTitle "playchess.com"]
[Source "ChessBase"]
[SourceQuality "1"]
[TimeControl "5400+30"]

1. d4 {[%emt 0:00:03]} d5 {[%emt 0:00:25]} 2. Nf3 {[%emt 0:00:12]} Nf6 {[%emt 0:00:37]} 3. c4 {[%emt 0:00:52]} c6 {[%emt 0:00:37]} 4. Nc3 {[%emt 0:01:09]} e6 {[%emt 0:00:41]} 5. Bg5 {[%emt 0:01:46]} dxc4 {[%emt 0:00:28]} 6. e4 {[%emt 0:03:46]} b5 {[%emt 0:00:39]} 7. e5 {[%emt 0:06:48]} h6 {[%emt 0:00:24]} 8. Bh4 {[%emt 0:00:14]} g5 {[%emt 0:00:14]} 9. Nxg5 {[%emt 0:00:21]} hxg5 {[%emt 0:00:11]} 10. Bxg5 {[%emt 0:00:02]} Nbd7 {[%emt 0:00:24]} 11. Qf3 {[%emt 0:07:15]} Bb7 {[%emt 0:03:24]} 12. O-O-O {[%emt 0:03:35]} Bh6 {[%emt 0:10:45]} 13. Bxh6 {[%emt 0:00:53]} Rxh6 {[%emt 0:00:03]} 14. exf6 {[%emt 0:01:33]} Qxf6 {[%emt 0:12:42]} 15. Qe3 {[%emt 0:03:40]} Rh5 {[%emt 0:30:52]} 16. Be2 {[%emt 0:06:03]} Rh8 {[%emt 0:11:03]} 17. Ne4 {[%emt 0:02:39]} Qe7 18. Qg3 Nb6 {[%emt 0:05:30]} 19. Nd6+ {[%emt 0:04:19]} Kf8 {[%emt 0:01:07]} 20. Nxb7 {[%emt 0:05:38]} Qxb7 {[%emt 0:00:04]} 21. Qd6+ {[%emt 0:00:18]} Ke8 {[%emt 0:02:52]} 22. Bf3 {[%emt 0:01:28]} Rc8 {[%emt 0:00:07]} 23. Qe5 {[%emt 0:02:29]} Rg8 {[%emt 0:01:09]} 24. Qxb5 {[%emt 0:03:23]} cxb5 {[%emt 0:00:38]} 25. Bxb7 {[%emt 0:00:02]} Rc7 {[%emt 0:00:35]} 26. Bf3 {[%emt 0:00:21]} Ke7 {[%emt 0:00:49]} 27. h4 {[%emt 0:04:10]} b4 {[%emt 0:01:39]} 28. Rhe1 {[%emt 0:05:10]} Kd6 {[%emt 0:00:37]} 29. Re5 {[%emt 0:03:52]} Nd5 {[%emt 0:02:03]} 30. Bxd5 {[%emt 0:01:54]} exd5 {[%emt 0:00:03]} 31. g3 {[%emt 0:00:20]} a5 {[%emt 0:03:04]} 32. Rf5 {[%emt 0:02:14]} Re8 {[%emt 0:02:19]} 33. Rf6+ {[%emt 0:00:59]} Re6 {[%emt 0:00:58]} 34. Rxe6+ {[%emt 0:00:31]} Kxe6 {[%emt 0:00:25]} 35. Re1+ {[%emt 0:00:26]} Kd6 {[%emt 0:00:52]} 36. g4 {[%emt 0:02:10]} a4 {[%emt 0:00:19]} 37. Re3 {[%emt 0:00:50]} Re7 {[%emt 0:01:30]} 38. h5 {[%emt 0:05:57]} Rc7 {[%emt 0:06:16]} 39. g5 {[%emt 0:02:31]} Rc8 {[%emt 0:00:55]} 40. f4 {[%emt 0:00:39]} Rh8 {[%emt 0:01:27]} 41. h6 {[%emt 0:00:00]} Rg8 {[%emt 0:00:00]} 42. Re5 {[%emt 0:00:00]} c3 {[%emt 0:00:00]} 43. bxc3 {[%emt 0:00:00]} Rc8 {[%emt 0:00:00]} 44. Re3 {[%emt 0:00:00]} bxc3 {[%emt 0:00:00]} 45. f5 {[%emt 0:00:00]} c2 {[%emt 0:00:00]} 46. g6 {[%emt 0:00:00]} 1-0

[Event "2nd Bieszczady Chess-ch A 2022"]
[Site "Bystre"]
[Date "2022.07.21"]
[Round "5.8"]
[White "Kasperek, Ryszard"]
[Black "Janzer, Hubert"]
[Result "1-0"]
[ECO "B30"]
[WhiteElo "2058"]
[BlackElo "1839"]
[Annotator "NA RC"]
[PlyCount "85"]
[EventDate "2022.07.17"]
[EventCountry "POL"]
[SourceTitle "playchess.com"]
[Source "ChessBase"]
[SourceQuality "1"]
[TimeControl "5400+30"]

1. e4 c5 {[%emt 0:02:22]} 2. Nf3 {[%emt 0:00:12]} Nc6 {[%emt 0:00:58]} 3. Bb5 {[%emt 0:00:41]} a6 {[%emt 0:06:13]} 4. Bxc6 {[%emt 0:00:45]} bxc6 {[%emt 0:00:06]} 5. O-O {[%emt 0:06:36]} d5 {[%emt 0:07:52]} 6. Nc3 {[%emt 0:20:42]} Bg4 {[%emt 0:04:29]} 7. d3 {[%emt 0:01:40]} e6 {[%emt 0:06:26]} 8. h3 {[%emt 0:02:12]} Bxf3 {[%emt 0:09:52]} 9. Qxf3 {[%emt 0:00:42]} Bd6 {[%emt 0:00:41]} 10. Qg4 {[%emt 0:20:51]} Qf6 {[%emt 0:10:29]} 11. Re1 {[%emt 0:04:23]} Ne7 {[%emt 0:06:08]} 12. e5 {[%emt 0:10:52]} Bxe5 {[%emt 0:00:48]} 13. Bg5 {[%emt 0:00:08]} Bxc3 {[%emt 0:00:57]} 14. Bxf6 {[%emt 0:00:08]} Bxf6 {[%emt 0:00:06]} 15. c3 {[%emt 0:04:44]} O-O {[%emt 0:00:26]} 16. Qf4 {[%emt 0:01:38]} Rab8 {[%emt 0:01:47]} 17. Re2 {[%emt 0:00:22]} e5 {[%emt 0:02:27]} 18. Qa4 {[%emt 0:00:11]} Rb6 {[%emt 0:00:29]} 19. Qa3 {[%emt 0:03:13]} Rb5 {[%emt 0:06:34]} 20. Qxa6 {[%emt 0:08:48]} Rfb8 {[%emt 0:00:21]} 21. c4 {[%emt 0:03:15]} Rb4 {[%emt 0:01:28]} 22. Rae1 {[%emt 0:01:29]} e4 {[%emt 0:09:43]} 23. dxe4 {[%emt 0:00:28]} d4 {[%emt 0:01:08]} 24. e5 {[%emt 0:00:22]} Bg5 {[%emt 0:00:06]} 25. Rd1 {[%emt 0:00:25]} Ng6 {[%emt 0:05:42]} 26. b3 {[%emt 0:01:56]} Nf4 {[%emt 0:00:44]} 27. Re4 {[%emt 0:00:06]} R4b6 {[%emt 0:02:04]} 28. Qa5 {[%emt 0:00:19]} Ne6 {[%emt 0:00:06]} 29. g3 {[%emt 0:02:18]} Bd8 {[%emt 0:00:23]} 30. Qa3 {[%emt 0:01:00]} Ng5 {[%emt 0:02:15]} 31. Re2 {[%emt 0:00:06]} Nxh3+ {[%emt 0:01:01]} 32. Kg2 {[%emt 0:00:24]} Ng5 {[%emt 0:00:04]} 33. f4 {[%emt 0:00:17]} Ne6 {[%emt 0:00:03]} 34. f5 {[%emt 0:00:12]} d3 {[%emt 0:01:20]} 35. Rxd3 {[%emt 0:00:29]} Nd4 {[%emt 0:00:07]} 36. Rf2 {[%emt 0:00:47]} Rb4 {[%emt 0:00:55]} 37. Qa7 {[%emt 0:00:55]} R4b6 {[%emt 0:00:54]} 38. Qd7 {[%emt 0:00:49]} Bg5 {[%emt 0:00:53]} 39. e6 {[%emt 0:00:00]} fxe6 {[%emt 0:00:00]} 40. fxe6 {[%emt 0:00:00]} R6b7 {[%emt 0:00:00]} 41. Rxd4 {[%emt 0:00:00]} Rxd7 {[%emt 0:00:00]} 42. Rxd7 {[%emt 0:00:00]} Re8 {[%emt 0:00:00]} 43. Re2 {[%emt 0:00:00]} 1-0

[Event "2nd Bieszczady Chess-ch A 2022"]
[Site "Bystre"]
[Date "2022.07.21"]
[Round "5.9"]
[White "Kopacz, Lukasz"]
[Black "Kucharski, Bartlomiej"]
[Result "0-1"]
[ECO "A17"]
[WhiteElo "1821"]
[BlackElo "2003"]
[Annotator "RC"]
[PlyCount "88"]
[EventDate "2022.07.17"]
[EventCountry "POL"]
[SourceTitle "playchess.com"]
[Source "ChessBase"]
[SourceQuality "1"]
[TimeControl "5400+30"]

1. c4 Nf6 2. Nc3 e6 3. g3 d5 4. Bg2 Be7 5. Nf3 d4 6. Nb1 O-O 7. O-O c5 8. d3 h6 9. e4 Nc6 10. a3 e5 11. h3 a6 12. b3 b5 13. Nbd2 Ne8 14. Ne1 Rb8 15. f4 a5 16. f5 a4 17. bxa4 bxc4 18. Nxc4 Ba6 19. Nb2 Nd6 20. Qc2 Na5 21. Nf3 f6 22. Nd2 c4 23. Ndxc4 Ndxc4 24. dxc4 Qb6 25. Kh2 Rfc8 26. Qd1 Nxc4 27. Nxc4 Bxc4 28. Rf2 d3 29. Rf3 Qd4 30. Be3 Qxe4 31. Qd2 Qb7 32. Bxh6 gxh6 33. Qxh6 Bf8 34. Qxf6 Qg7 35. Qh4 Rb2 36. f6 Qg6 37. Raf1 Bf7 38. R3f2 Rcc2 39. Rxc2 Rxc2 40. Kh1 Rc4 41. g4 d2 42. Qg3 Rd4 43. Bf3 Qd3 44. Qf2 Rf4 0-1

[Event "2nd Bieszczady Chess-ch A 2022"]
[Site "Bystre"]
[Date "2022.07.21"]
[Round "6.1"]
[White "Razin, Vadim"]
[Black "Karvatskyi, Oleksii"]
[Result "1-0"]
[ECO "A48"]
[WhiteElo "2428"]
[BlackElo "1804"]
[Annotator "TA"]
[PlyCount "71"]
[EventDate "2022.07.17"]
[EventCountry "POL"]
[SourceTitle "playchess.com"]
[Source "ChessBase"]
[SourceQuality "1"]
[TimeControl "5400+30"]

{[%evp 13,71,5,10,-4,39,37,35,17,56,31,54,66,86,72,262,260,265,266,260,254,254,257,244,188,193,202,207,198,218,193,202,210,306,308,292,310,308,308,323,320,513,491,484,468,495,474,550,560,606,604,590,596,1176,1161,1020,971,1230,1103,1643,1572]} 1. d4 {[%emt 0:00:03]} Nf6 {[%emt 0:03:31]} 2. Nf3 {[%emt 0:00:07]} g6 {[%emt 0:00:49]} 3. Bg5 {[%emt 0:00:11]} Bg7 {[%emt 0:01:59]} 4. Nbd2 {[%emt 0:00:08]} d5 {[%emt 0:00:39]} 5. e3 {[%emt 0:00:15]} O-O {[%emt 0:00:49]} 6. Be2 {[%emt 0:01:55]} Nbd7 {[%emt 0:00:44]} 7. O-O {[%emt 0:00:21]} b6 {[%emt 0:04:04]} 8. c4 {[%emt 0:04:09] D03: 1 d4 d5 2 Nf3 Nf6 3 Bg5, including Torre Attack with early ...d5.} c6 {[%emt 0:02:40] [#]} 9. Qb3 $146 {[%emt 0:10:10]} ({Predecessor:} 9. Rc1 Bb7 10. cxd5 cxd5 11. Qa4 a6 12. h3 Ne4 13. Bh4 b5 14. Qa3 Re8 15. Nb3 {½-½ (41) Stamenkovic,D (2378)-Postny,E (2600) Chess.com INT 2020}) 9... Bb7 {[%emt 0:02:57]} 10. a4 {[%emt 0:07:27] White is slightly better.} a6 {[%emt 0:04:51]} 11. Rac1 {[%emt 0:06:39]} Re8 {[%emt 0:01:59]} 12. Rfd1 {[%emt 0:05:05]} h6 {[%emt 0:07:57]} 13. Bf4 {[%emt 0:01:17][%cal Bg5f4,Bf4c7,Bc7d8,Bd8b6,Bb6c5][%mdl 32] White is more active.} Ne4 $2 {[%emt 0:01:48]} (13... e6 $16 {keeps fighting.}) 14. cxd5 $18 {[%emt 0:03:00]} cxd5 {[%emt 0:01:20] [#]} 15. Bc7 $1 {[%emt 0:08:13]} Nec5 {[%emt 0:22:03] [#]} 16. Rxc5 {[%emt 0:00:50]} (16. Bxd8 Nxb3 17. Nxb3 Rexd8 $14) (16. dxc5 Qxc7 17. cxb6 Qxb6 $11) 16... Nxc5 {[%emt 0:00:04]} 17. Qxb6 {[%emt 0:00:03]} (17. dxc5 Qxc7 18. Qxb6 (18. cxb6 $2 Qc5 $19) 18... Qxb6 19. cxb6 Rec8 $19) 17... Nxa4 {[%emt 0:00:46]} 18. Bxd8 {[%emt 0:00:15]} Nxb6 {[%emt 0:00:06]} 19. Bxb6 {[%emt 0:00:03]} Rec8 {[%emt 0:00:43]} 20. Bc5 {[%emt 0:03:04]} e6 {[%emt 0:00:29]} 21. Ra1 {[%emt 0:02:57]} a5 {[%emt 0:00:44]} 22. Bb5 {[%emt 0:00:44]} Bc6 {[%emt 0:01:23]} (22... Rcb8 $142 23. Bd6 Rd8) 23. Bxc6 {[%emt 0:00:09]} Rxc6 {[%emt 0:00:02]} 24. b4 {[%emt 0:01:52]} a4 {[%emt 0:01:33]} 25. Ra3 {[%emt 0:00:02]} Bf8 {[%emt 0:01:33]} 26. Ne5 {[%emt 0:00:16]} Rcc8 {[%emt 0:00:25]} (26... Rc7 27. Nb1 Kg7) 27. Nd7 {[%emt 0:00:34] White is clearly winning.} Bxc5 {[%emt 0:00:10]} 28. dxc5 {[%emt 0:00:33]} ({Not} 28. bxc5 Ra7 $18) ({Less strong is} 28. Nxc5 Rcb8 29. Nd3 (29. Rxa4 Rxa4 30. Nxa4 Rxb4 $16) (29. Nxa4 $2 Rxb4 30. h4 Rbxa4 $19) 29... Kf8 $18) 28... Rc7 {[%emt 0:00:16]} 29. Nb6 {[%emt 0:00:08][%csl LRa4,LRa8]} Ra6 {[%emt 0:00:07]} 30. Kf1 {[%emt 0:00:25]} Kg7 31. Nb1 {[%emt 0:01:35]} Kf6 {[%emt 0:06:00]} 32. Nc3 {[%emt 0:00:50]} Ke5 {[%emt 0:00:33]} 33. f4+ {[%emt 0:00:41]} Kf5 {[%emt 0:00:02]} 34. Rxa4 {[%emt 0:00:26]} Rxa4 {[%emt 0:00:09]} 35. Nbxa4 {[%emt 0:00:11]} Ra7 {[%emt 0:00:27]} 36. b5 {[%emt 0:00:06] Black did not feel at home in the position after the opening.  Weighted Error Value: White=0.05 (flawless) /Black=0.43} 1-0

[Event "2nd Bieszczady Chess-ch A 2022"]
[Site "Bystre"]
[Date "2022.07.21"]
[Round "6.2"]
[White "Kyc, Jerzy"]
[Black "Marszalek, Maciej"]
[Result "1-0"]
[ECO "C50"]
[WhiteElo "2203"]
[BlackElo "2268"]
[Annotator "ChessBase"]
[PlyCount "79"]
[EventDate "2022.07.17"]
[EventCountry "POL"]
[SourceTitle "playchess.com"]
[Source "ChessBase"]
[SourceQuality "1"]
[TimeControl "5400+30"]

1. e4 {[%emt 0:00:00]} e5 {[%emt 0:00:07]} 2. Nf3 {[%emt 0:00:07]} Nc6 {[%emt 0:00:06]} 3. Bc4 {[%emt 0:02:03]} Nf6 {[%emt 0:00:55]} 4. d3 {[%emt 0:00:03]} Bc5 {[%emt 0:00:16]} 5. Nc3 {[%emt 0:01:04]} h6 {[%emt 0:00:54]} 6. Be3 {[%emt 0:01:13]} Bxe3 {[%emt 0:00:34]} 7. fxe3 {[%emt 0:00:03]} d6 {[%emt 0:00:10]} 8. O-O {[%emt 0:09:26]} Na5 {[%emt 0:01:16]} 9. Bb3 {[%emt 0:02:48]} Nxb3 {[%emt 0:00:39]} 10. axb3 {[%emt 0:00:02]} O-O {[%emt 0:01:40]} 11. Qe1 {[%emt 0:01:51]} c6 {[%emt 0:04:54]} 12. h3 {[%emt 0:01:07]} Nh7 {[%emt 0:13:07]} 13. Qg3 {[%emt 0:08:55]} Be6 {[%emt 0:04:23]} 14. Kh2 {[%emt 0:01:44]} a6 {[%emt 0:01:11]} 15. d4 {[%emt 0:00:45]} exd4 {[%emt 0:06:14]} 16. exd4 {[%emt 0:00:03]} d5 {[%emt 0:06:10]} 17. e5 {[%emt 0:09:47]} Qe7 {[%emt 0:01:25]} 18. Rf2 {[%emt 0:01:30]} c5 {[%emt 0:04:32]} 19. Raf1 {[%emt 0:05:07]} cxd4 {[%emt 0:09:41]} 20. Nxd4 {[%emt 0:02:51]} Rad8 {[%emt 0:04:37]} 21. h4 {[%emt 0:03:11]} Rfe8 {[%emt 0:02:50]} 22. Rxf7 {[%emt 0:08:19]} Qxf7 {[%emt 0:00:21]} 23. Rxf7 {[%emt 0:00:03]} Kxf7 {[%emt 0:00:29]} 24. Nce2 {[%emt 0:01:31]} Nf8 {[%emt 0:04:10]} 25. Nf4 {[%emt 0:03:49]} Kg8 {[%emt 0:00:37]} 26. b4 {[%emt 0:03:03]} Bc8 {[%emt 0:01:30]} 27. Nh5 {[%emt 0:03:46]} Re7 {[%emt 0:00:23]} 28. b5 {[%emt 0:00:41]} axb5 {[%emt 0:02:24]} 29. Nxb5 {[%emt 0:02:50]} Bf5 {[%emt 0:01:36]} 30. Nd6 {[%emt 0:00:54]} Bg6 {[%emt 0:04:35]} 31. Nf4 {[%emt 0:00:37]} Be4 {[%emt 0:01:25]} 32. c4 {[%emt 0:00:52]} Rxe5 {[%emt 0:03:11]} 33. Nxd5 {[%emt 0:01:03]} Rxd5 {[%emt 0:01:35]} 34. cxd5 {[%emt 0:00:09]} Bxd5 {[%emt 0:00:02]} 35. Nf5 {[%emt 0:00:24]} Rd7 {[%emt 0:02:17]} 36. Nxh6+ {[%emt 0:02:07]} Kh7 {[%emt 0:00:03]} 37. Nf5 {[%emt 0:01:15]} Be6 {[%emt 0:06:23]} 38. Nd6 {[%emt 0:01:36]} Ng6 {[%emt 0:03:11]} 39. h5 {[%emt 0:01:45]} Ne7 {[%emt 0:00:41]} 40. Qe5 {[%emt 0:00:00]} 1-0